Workbook

Sheet CRONOGRAMA
C13: TODOS OS VALORES ESTÃO NA UNIDADE MONETÁRIA REAL
C14: ITEM | D14: SERVIÇO | E14: UN | F14: QUANT. | G14: VALOR (S/ BDI) | H14: BDI | I14: VALOR (C/ BDI) | J14: VALOR TOTAL | K14: CÓDIGO | L14: FONTE
C15: 1 | D15: =[1]QUANT!C8 -> CANTEIRO DE OBRA | I15: ∑ | J15: =J16 -> 450
C16: 1.1 | D16: =[1]QUANT!C9 -> Placa de Obra em Lona com quadro de madeira | E16: M2 | F16: =ROUND([1]QUANT!E9,2) -> 2.88 | G16: 75 | H16: =[1]BDI!$C$31 -> 0.2034 | I16: =ROUND(((G16*H16)+G16),2) -> 90.26 | J16: 450 | K16: MED200 | L16: MERCADO
C17: 2 | D17: DEMOLIÇÃO | I17: ∑ | J17: =SUM(J19:J24) -> 5525.09
C18: 2.1 | D18: Parede de Alvenaria
C19: 2.1.1 | D19: Remoção de parede - mão de obra | E19: M3 | F19: 1.46 | G19: 157.64 | H19: 0.2034 | I19: =ROUND(((G19*H19)+G19),2) -> 189.7 | J19: =IF(ISERR(ROUND(ROUND(F19,2)*I29,2)),"",ROUND(ROUND(F19,2)*I19,2)) -> 276.96 | K19: 97623 | L19: SINAPI-C
C20: 2.1.2 | D20: Remoção de porta/janela (0,80 x 2,40m) - mão de obra | E20: M2 | F20: 2.02 | G20: 250 | H20: 0.2034 | I20: =ROUND(((G20*H20)+G20),2) -> 300.85 | J20: =IF(ISERR(ROUND(ROUND(F20,2)*I30,2)),"",ROUND(ROUND(F20,2)*I20,2)) -> 607.72 | K20: MED201 | L20: MERCADO
C21: 2.1.3 | D21: Remoção de janela alumínio e vidro (5,86 x 1,10m) - mão de obra | E21: M2 | F21: 6.77 | G21: 500 | H21: 0.2034 | I21: =ROUND(((G21*H21)+G21),2) -> 601.7 | J21: =IF(ISERR(ROUND(ROUND(F21,2)*I31,2)),"",ROUND(ROUND(F21,2)*I21,2)) -> 4073.51 | K21: MED202 | L21: MERCADO
C22: 2.1.4 | D22: Remoção de janela alumínio e vidro (1,00 x 1,10m) - mão de obra | E22: M2 | F22: 1.16 | G22: 250 | H22: 0.2034 | I22: =ROUND(((G22*H22)+G22),2) -> 300.85 | J22: 348.99 | K22: MED203 | L22: MERCADO
C23: 2.1.5 | D23: Remoção de Telhamento | E23: M2 | F23: 16.66 | G23: 4 | H23: 0.2034 | I23: 4.81 | J23: 80.13 | K23: 97649 | L23: SINAPI-C
C24: 2.1.6 | D24: Remoção de Estrutura de Madeira do Telhado | E24: M2 | F24: 16.66 | G24: 6.87 | H24: 0.2034 | I24: =ROUND(((G24*H24)+G24),2) -> 8.27 | J24: 137.78 | K24: 97650 | L24: SINAPI-C
C25: 3 | D25: =[1]QUANT!C27 -> INFRAESTRUTURA | I25: ∑ | J25: =SUM(J27:J42) -> 13704.1
C26: 3.1 | D26: Escavação
C27: 3.1.1 | D27: Escavação Manual para Bloco/Sapata, com previsão de fôrma | E27: M3 | F27: 2.54 | G27: 90.65 | H27: =[1]BDI!$C$31 -> 0.2034 | I27: =ROUND(((G27*H27)+G27),2) -> 109.09 | J27: =IF(ISERR(ROUND(ROUND(F27,2)*I27,2)),"",ROUND(ROUND(F27,2)*I27,2)) -> 277.09 | K27: 96523 | L27: SINAPI-C
C28: 3.1.2 | D28: Escavação Manual para Viga Baldrame, com previsão de fôrma | E28: M3 | F28: 2.59 | G28: 118.94 | H28: =[1]BDI!$C$31 -> 0.2034 | I28: =ROUND(((G28*H28)+G28),2) -> 143.13 | J28: 370.71 | K28: 96527 | L28: SINAPI-C
C29: 3.2 | D29: Lastro de Brita Graduada
C30: 3.2.1 | D30: Lastro de Brita Graduada para Fundo de Valas das Fundações, esp.=5cm | E30: M3 | F30: 0.58 | G30: 190.68 | H30: =[1]BDI!$C$31 -> 0.2034 | I30: =ROUND(((G30*H30)+G30),2) -> 229.46 | J30: =IF(ISERR(ROUND(ROUND(F30,2)*I30,2)),"",ROUND(ROUND(F30,2)*I30,2)) -> 133.09 | K30: 96621 | L30: SINAPI-C
C31: 3.3 | D31: Fôrma
C32: 3.3.1 | D32: Fôrma de Madeira para Concreto (material e mão-de-obra para fabricação, montagem e desforma) - Blocos de Coroamento e Pilares de Fundação | E32: M2 | F32: 8.57 | G32: 121.92 | H32: =[1]BDI!$C$31 -> 0.2034 | I32: =ROUND(((G32*H32)+G32),2) -> 146.72 | J32: =IF(ISERR(ROUND(ROUND(F32,2)*I32,2)),"",ROUND(ROUND(F32,2)*I32,2)) -> 1257.39 | K32: CED005 | L32: COMPOSIÇÃO
C33: 3.3.2 | D33: Fôrma de Madeira para Concreto, (material e mão-de-obra para fabricação, montagem e desforma) - Vigas Baldrame | E33: M2 | F33: 24.18 | G33: 60.94 | H33: =[1]BDI!$C$31 -> 0.2034 | I33: =ROUND(((G33*H33)+G33),2) -> 73.34 | J33: 1773.36 | K33: CED007 | L33: COMPOSIÇÃO
C34: 3.4 | D34: Armadura
C35: 3.4.1 | D35: Armadura CA-50 - 8.0mm (fornecimento, corte, dobra e colocação) | E35: KG | F35: 58.1 | G35: 17.01 | H35: =[1]BDI!$C$31 -> 0.2034 | I35: =ROUND(((G35*H35)+G35),2) -> 20.47 | J35: =IF(ISERR(ROUND(ROUND(F35,2)*I35,2)),"",ROUND(ROUND(F35,2)*I35,2)) -> 1189.31 | K35: 96545 | L35: SINAPI-C
C36: 3.4.2 | D36: Armadura CA-50 - 10.0mm (fornecimento, corte, dobra e colocação) | E36: KG | F36: 138 | G36: 15.83 | H36: =[1]BDI!$C$31 -> 0.2034 | I36: 19.05 | J36: 2628.9 | K36: 96546 | L36: SINAPI-C
C37: 3.4.3 | D37: Armadura CA-50 - 12.5mm (fornecimento, corte, dobra e colocação) | E37: KG | F37: 46.4 | G37: 13.34 | H37: =[1]BDI!$C$31 -> 0.2034 | I37: 16.05 | J37: 744.72 | K37: 96547 | L37: SINAPI-C
C38: 3.4.4 | D38: Armadura CA-60 - 5.0mm (fornecimento, corte, dobra e colocação) | E38: KG | F38: 49 | G38: 18.91 | H38: =[1]BDI!$C$31 -> 0.2034 | I38: =ROUND(((G38*H38)+G38),2) -> 22.76 | J38: 1115.24 | K38: 96543 | L38: SINAPI-C
C39: 3.5 | D39: Concreto
C40: 3.5.1 | D40: Concreto Feito no Local, Fck= 25MPa (fornecimento, lançamento, adensamento e bombeado) | E40: M3 | F40: 5.13 | G40: 527.01 | H40: =[1]BDI!$C$31 -> 0.2034 | I40: =ROUND(((G40*H40)+G40),2) -> 634.2 | J40: =IF(ISERR(ROUND(ROUND(F40,2)*I40,2)),"",ROUND(ROUND(F40,2)*I40,2)) -> 3253.45 | K40: CED002 | L40: COMPOSIÇÃO
C41: 3.6 | D41: Impermeabilização
C42: 3.6.1 | D42: Impermeabilização das Vigas Baldrames com Manta Asfáltica e=3mm, incluindo Emulsão Asfáltica | E42: M2 | F42: 8.47 | G42: 94.27 | H42: =[1]BDI!$C$31 -> 0.2034 | I42: =ROUND(((G42*H42)+G42),2) -> 113.44 | J42: =IF(ISERR(ROUND(ROUND(F42,2)*I42,2)),"",ROUND(ROUND(F42,2)*I42,2)) -> 960.84 | K42: 98546 | L42: SINAPI-C
C43: 4 | D43: =[1]QUANT!C31 -> SUPRAESTRUTURA | I43: ∑ | J43: =SUM(J45,J46,J48,J49,J50,J51,J52,J54,J55) -> 10098.84
C44: 4.1 | D44: Fôrma
C45: 4.1.1 | D45: Fôrma de Madeira Serrada para Concreto, (material e mão-de-obra para fabricação, montagem e desforma) - Pilares | E45: M2 | F45: 21.17 | G45: 88.16 | H45: =[1]BDI!$C$31 -> 0.2034 | I45: =ROUND(((G45*H45)+G45),2) -> 106.09 | J45: =IF(ISERR(ROUND(ROUND(F45,2)*I45,2)),"",ROUND(ROUND(F45,2)*I45,2)) -> 2245.93 | K45: CED008 | L45: COMPOSIÇÃO
C46: 4.1.2 | D46: Fôrma de Madeira Serrada para Concreto, (material e mão-de-obra para fabricação, montagem e desforma) - Vigas Superiores | E46: M2 | F46: 21.57 | G46: 104.89 | H46: =[1]BDI!$C$31 -> 0.2034 | I46: =ROUND(((G46*H46)+G46),2) -> 126.22 | J46: 2722.57 | K46: CED009 | L46: COMPOSIÇÃO
C47: 4.2 | D47: Armadura
C48: 4.2.1 | D48: Armadura CA-50 - 8.0mm (fornecimento, corte, dobra e colocação) | E48: KG | F48: 15.7 | G48: 17.71 | H48: =[1]BDI!$C$31 -> 0.2034 | I48: =ROUND(((G48*H48)+G48),2) -> 21.31 | J48: =IF(ISERR(ROUND(ROUND(F48,2)*I48,2)),"",ROUND(ROUND(F48,2)*I48,2)) -> 334.57 | K48: 92777 | L48: SINAPI-C
C49: 4.2.2 | D49: Armadura CA-50 - 10.0mm (fornecimento, corte, dobra e colocação) | E49: KG | F49: 62.4 | G49: 15.76 | H49: =[1]BDI!$C$31 -> 0.2034 | I49: 18.97 | J49: 1183.73 | K49: 92778 | L49: SINAPI-C
C50: 4.2.3 | D50: Armadura CA-50 - 12.5mm (fornecimento, corte, dobra e colocação) | E50: KG | F50: 12.4 | G50: 13.2 | H50: =[1]BDI!$C$31 -> 0.2034 | I50: 15.88 | J50: 196.91 | K50: 92779 | L50: SINAPI-C
C51: 4.2.4 | D51: Armadura CA-60 - 5.0mm (fornecimento, corte, dobra e colocação) | E51: KG | F51: 40.2 | G51: 19.01 | H51: =[1]BDI!$C$31 -> 0.2034 | I51: =ROUND(((G51*H51)+G51),2) -> 22.88 | J51: 919.78 | K51: 92775 | L51: SINAPI-C
C52: 4.2.5 | D52: Armadura CA-50 - 6.3mm (fornecimento, corte, dobra e colocação) | E52: KG | F52: 18.7 | G52: 19.01 | H52: =[1]BDI!$C$31 -> 0.2034 | I52: =ROUND(((G52*H52)+G52),2) -> 22.88 | J52: 427.86 | K52: 92776 | L52: SINAPI-C
C53: 4.3 | D53: Concreto
C54: 4.3.1 | D54: Concreto Feito no Local, Fck= 25MPa (fornecimento, lançamento, adensamento e bombeado) - Pilares | E54: M3 | F54: 1.64 | G54: 527.01 | H54: =[1]BDI!$C$31 -> 0.2034 | I54: =ROUND(((G54*H54)+G54),2) -> 634.2 | J54: =IF(ISERR(ROUND(ROUND(F54,2)*I54,2)),"",ROUND(ROUND(F54,2)*I54,2)) -> 1040.09 | K54: CED002 | L54: COMPOSIÇÃO
C55: 4.3.2 | D55: Concreto Usinado, Fck= 25MPa (fornecimento, lançamento, adensamento e bombeado) - Vigas | E55: M3 | F55: 1.62 | G55: 527.01 | H55: =[1]BDI!$C$31 -> 0.2034 | I55: =ROUND(((G55*H55)+G55),2) -> 634.2 | J55: =IF(ISERR(ROUND(ROUND(F55,2)*I55,2)),"",ROUND(ROUND(F55,2)*I55,2)) -> 1027.4 | K55: CED003 | L55: COMPOSIÇÃO
C56: 5 | D56: =[1]QUANT!C35 -> FECHAMENTOS | I56: ∑ | J56: =SUM(J58,J60) -> 4763.8
C57: 5.1 | D57: Alvenaria de Tijolos Cerâmicos
C58: 5.1.1 | D58: Alvenaria de Vedação de Rijolo Ceramico Furados Tijolo 11,5x19x24cm, 8 Furos, Assentamento Cutelo (fornecimento e assentamento, incluso argamassa) | E58: M2 | F58: 57.07 | G58: 61.24 | H58: =[1]BDI!$C$31 -> 0.2034 | I58: =ROUND(((G58*H58)+G58),2) -> 73.7 | J58: =IF(ISERR(ROUND(ROUND(F58,2)*I58,2)),"",ROUND(ROUND(F58,2)*I58,2)) -> 4206.06 | K58: CED033 | L58: COMPOSIÇÃO
C59: 5.2 | D59: Contra-Vergas
C60: 5.2.1 | D60: =[1]QUANT!C109 -> Vergas, moldadas no local, h=20cm (incluso Fôrmas, Concreto e Armadura) | E60: M | F60: 9.1 | G60: 50.93 | H60: =[1]BDI!$C$31 -> 0.2034 | I60: =ROUND(((G60*H60)+G60),2) -> 61.29 | J60: =IF(ISERR(ROUND(ROUND(F60,2)*I60,2)),"",ROUND(ROUND(F60,2)*I60,2)) -> 557.74 | K60: CED030 | L60: COMPOSIÇÃO
C61: 6 | D61: =[1]QUANT!C149 -> ESTRUTURA COBERTURA | I61: ∑ | J61: =SUM(J62,J63) -> 9889
C62: 6.1 | D62: Estrutura Pontaletada em Madeira Não Aparelhada para Telha Cerâmica, composta por Pontaletes, Mão Francesa e Berço (fabricação e instalação) | E62: M2 | F62: 116 | G62: 23.38 | H62: =[1]BDI!$C$31 -> 0.2034 | I62: =ROUND(((G62*H62)+G62),2) -> 28.14 | J62: =IF(ISERR(ROUND(ROUND(F62,2)*I62,2)),"",ROUND(ROUND(F62,2)*I62,2)) -> 3264.24 | K62: CED050 | L62: COMPOSIÇÃO
C63: 6.2 | D63: Trama de Pinus Tratado, composta por: - Ripas 3x6cm à cada 32cm - Caibros 6x12cm à cada 70cm - Terças 7x15cm à cada 220cm | E63: M2 | F63: 116 | G63: 47.46 | H63: =[1]BDI!$C$31 -> 0.2034 | I63: =ROUND(((G63*H63)+G63),2) -> 57.11 | J63: =IF(ISERR(ROUND(ROUND(F63,2)*I63,2)),"",ROUND(ROUND(F63,2)*I63,2)) -> 6624.76 | K63: CED052 | L63: COMPOSIÇÃO
C64: 7 | D64: =[1]QUANT!C153 -> TELHAMENTO | I64: ∑ | J64: =SUM(J65,J66) -> 5212.22
C65: 7.1 | D65: =[1]QUANT!C155 -> Telha Cerâmica tipo Portuguesa, Esmaltada (fornecimento e instalação) | E65: M2 | F65: 116 | G65: 33.98 | H65: =[1]BDI!$C$31 -> 0.2034 | I65: =ROUND(((G65*H65)+G65),2) -> 40.89 | J65: =IF(ISERR(ROUND(ROUND(F65,2)*I65,2)),"",ROUND(ROUND(F65,2)*I65,2)) -> 4743.24 | K65: 94195 | L65: SINAPI-C
C66: 7.2 | D66: =[1]QUANT!C160 -> Cumeeiras/Espigão Cerâmica, Emboçada com Argamassa (fornecimento e instalação) | E66: M | F66: 13.02 | G66: 29.93 | H66: =[1]BDI!$C$31 -> 0.2034 | I66: =ROUND(((G66*H66)+G66),2) -> 36.02 | J66: 468.98 | K66: 94219 | L66: SINAPI-C
C67: 8 | D67: =[1]QUANT!C194 -> CALHAS E RUFOS | I67: ∑ | J67: =SUM(J68,J69) -> 3831.56
C68: 8.1 | D68: =[1]QUANT!C201 -> Calha Platibanda em Chapa em Aço Galvanizado, em Chapa 24 (e=0,65mm) | E68: M | F68: 26.04 | G68: 100.3 | H68: =[1]BDI!$C$31 -> 0.2034 | I68: =ROUND(((G68*H68)+G68),2) -> 120.7 | J68: =IF(ISERR(ROUND(ROUND(F68,2)*I68,2)),"",ROUND(ROUND(F68,2)*I68,2)) -> 3143.03 | K68: 94227 | L68: SINAPI-C
C69: 8.2 | D69: =[1]QUANT!C207 -> Rufo Capa em Chapa em Aço Galvanizado, em Chapa 24 (e=0,65mm) | E69: M | F69: 9.87 | G69: 57.97 | H69: =[1]BDI!$C$31 -> 0.2034 | I69: =ROUND(((G69*H69)+G69),2) -> 69.76 | J69: 688.53 | K69: 94231 | L69: SINAPI-C
C70: 9 | D70: =[1]QUANT!C225 -> PISO CONVENCIONAL | I70: ∑ | J70: =SUM(J71:J76) -> 9847.75
C71: 9.1 | D71: Regularização e Apiloamento Manual | E71: M2 | F71: 97.45 | G71: 2.93 | H71: =[1]BDI!$C$31 -> 0.2034 | I71: =ROUND(((G71*H71)+G71),2) -> 3.53 | J71: =IF(ISERR(ROUND(ROUND(F71,2)*I71,2)),"",ROUND(ROUND(F71,2)*I71,2)) -> 344 | K71: CED060 | L71: COMPOSIÇÃO
C72: 9.2 | D72: Compactação Mecânica de Solo, com o Uso de Compactador a Percussão | E72: M2 | F72: 97.45 | G72: 3.07 | H72: =[1]BDI!$C$31 -> 0.2034 | I72: 3.69 | J72: 359.59 | K72: 97083 | L72: SINAPI-C
C73: 9.3 | D73: Lastro de Brita Graduada, e=20cm | E73: M3 | F73: 19.49 | G73: 113.85 | H73: =[1]BDI!$C$31 -> 0.2034 | I73: 137.01 | J73: 2670.32 | K73: 100324 | L73: SINAPI-C
C74: 9.4 | D74: Lona 200 Micras (fornecimento e instalação) | E74: M2 | F74: 97.45 | G74: 2.98 | H74: =[1]BDI!$C$31 -> 0.2034 | I74: 3.59 | J74: 349.85 | K74: 97087 | L74: SINAPI-C
C75: 9.5 | D75: Tela Soldada Q-92 (fornecimento, corte e colocação com espaçador) | E75: M2 | F75: 97.45 | G75: 23.7 | H75: =[1]BDI!$C$31 -> 0.2034 | I75: 28.52 | J75: 2779.27 | K75: CED061 | L75: COMPOSIÇÃO
C76: 9.6 | D76: Piso de Concreto Usinado, e= 7cm, Fck= 25MPa (fornecimento, lançamento, adensamento, bombeamento e sarrafeamento) | E76: M3 | F76: 6.83 | G76: 406.94 | H76: =[1]BDI!$C$31 -> 0.2034 | I76: 489.71 | J76: 3344.72 | K76: CED003 | L76: COMPOSIÇÃO
C77: 10 | D77: =[1]QUANT!C233 -> INSTALAÇÕES ELÉTRICAS | I77: ∑ | J77: =SUM(J79:J94) -> 5812.25
C78: 10.1 | D78: Infraestrutura do Ramal de Carga e Aterramento
C79: 10.1.1 | D79: Eletroduto PVC Rígido 1.1/2" (fornecimento e instalação) | E79: M | F79: 15.75 | G79: 16.71 | H79: =[1]BDI!$C$31 -> 0.2034 | I79: =ROUND(((G79*H79)+G79),2) -> 20.11 | J79: =IF(ISERR(ROUND(ROUND(F79,2)*I79,2)),"",ROUND(ROUND(F79,2)*I79,2)) -> 316.73 | K79: 93008 | L79: SINAPI-C
C80: 10.2 | D80: Fiação do Ramal de Carga e Aterramento
C81: 10.2.1 | D81: Cabo de Cobre Isolado 6mm2 - 1KV | E81: M | F81: 63 | G81: 11.24 | H81: =[1]BDI!$C$31 -> 0.2034 | I81: =ROUND(((G81*H81)+G81),2) -> 13.53 | J81: =IF(ISERR(ROUND(ROUND(F81,2)*I81,2)),"",ROUND(ROUND(F81,2)*I81,2)) -> 852.39 | K81: 91931 | L81: SINAPI-C
C82: 10.2.2 | D82: Cabo de Cobre Isolado 10mm2 - 1KV | E82: M | F82: 15.75 | G82: 11.93 | H82: =[1]BDI!$C$31 -> 0.2034 | I82: =ROUND(((G82*H82)+G82),2) -> 14.36 | J82: 226.17 | K82: 92980 | L82: SINAPI-C
C83: 10.3 | D83: Quadro de Distribuição
C84: 10.3.1 | D84: Quadro de Distribuição de Energia para 12 Disjuntores, em Chapa de Aço Galvanizado, com Barramento Trifasico e Neutro (fornecimento e instalação) | E84: UN | F84: 1 | G84: 513.5 | H84: =[1]BDI!$C$31 -> 0.2034 | I84: =ROUND(((G84*H84)+G84),2) -> 617.95 | J84: =IF(ISERR(ROUND(ROUND(F84,2)*I84,2)),"",ROUND(ROUND(F84,2)*I84,2)) -> 617.95 | K84: 101875 | L84: SINAPI-C
C85: 10.4 | D85: Disjuntores
C86: 10.4.1 | D86: Disjuntor Monopolar 25A (fornecimento e instalação) | E86: UN | F86: 2 | G86: 14 | H86: =[1]BDI!$C$31 -> 0.2034 | I86: =ROUND(((G86*H86)+G86),2) -> 16.85 | J86: =IF(ISERR(ROUND(ROUND(F86,2)*I86,2)),"",ROUND(ROUND(F86,2)*I86,2)) -> 33.7 | K86: 93656 | L86: SINAPI-C
C87: 10.5 | D87: Infraestrutura dos Pontos
C88: 10.5.1 | D88: Infraestrutura dos Pontos (Eletrodutos Corrigados 3/4", Caixas Octogonais e Caixas 4"x2") | E88: UN | F88: 10 | G88: 98.61 | H88: =[1]BDI!$C$31 -> 0.2034 | I88: =ROUND(((G88*H88)+G88),2) -> 118.67 | J88: =IF(ISERR(ROUND(ROUND(F88,2)*I88,2)),"",ROUND(ROUND(F88,2)*I88,2)) -> 1186.7 | K88: CEL200 | L88: COMPOSIÇÃO
C89: 10.6 | D89: Fiação dos Pontos, Interruptores e Tomadas
C90: 10.6.1 | D90: Ponto de Iluminação (Fiação 2,5mm² e Interruptor Simples) | E90: UN | F90: 2 | G90: 58.31 | H90: =[1]BDI!$C$31 -> 0.2034 | I90: =ROUND(((G90*H90)+G90),2) -> 70.17 | J90: =IF(ISERR(ROUND(ROUND(F90,2)*I90,2)),"",ROUND(ROUND(F90,2)*I90,2)) -> 140.34 | K90: CEL201 | L90: COMPOSIÇÃO
C91: 10.6.2 | D91: Ponto de Tomada de Uso Geral (Fiação 2,5mm² e Tomada 10A 2P+T com Placa) | E91: UN | F91: 13 | G91: 95.14 | H91: =[1]BDI!$C$31 -> 0.2034 | I91: =ROUND(((G91*H91)+G91),2) -> 114.49 | J91: =IF(ISERR(ROUND(ROUND(F91,2)*I91,2)),"",ROUND(ROUND(F91,2)*I91,2)) -> 1488.37 | K91: CEL202 | L91: COMPOSIÇÃO
C92: 10.6.3 | D92: Ponto de Tomada de Uso Específico (Fiação 4mm² e Tomada 20A 2P+T com Placa) | E92: UN | F92: 2 | G92: 122.61 | H92: =[1]BDI!$C$31 -> 0.2034 | I92: =ROUND(((G92*H92)+G92),2) -> 147.55 | J92: 295.1 | K92: CEL203 | L92: COMPOSIÇÃO
C93: 10.7 | D93: Luminárias
C94: 10.7.1 | D94: Luminária Calha, com 2 Lâmpadas de LED Tubular de 18W (fornecimento e instalação) | E94: UN | F94: 10 | G94: 54.41 | H94: =[1]BDI!$C$31 -> 0.2034 | I94: =ROUND(((G94*H94)+G94),2) -> 65.48 | J94: =IF(ISERR(ROUND(ROUND(F94,2)*I94,2)),"",ROUND(ROUND(F94,2)*I94,2)) -> 654.8 | K94: CEL101 | L94: COMPOSIÇÃO
C95: 11 | D95: =[1]QUANT!C249 -> REDE HIDRÁULICA | I95: ∑ | J95: =SUM(J96:J105) -> 1118.5
C96: 11.1 | D96: Metais
C97: 11.1.1 | D97: Registro de gaveta c/ canopla cromada | 3/4" | E97: UN | F97: 3 | G97: 76.64 | H97: =[1]BDI!$C$31 -> 0.2034 | I97: =ROUND(((G97*H97)+G97),2) -> 92.23 | J97: =IF(ISERR(ROUND(ROUND(F97,2)*I97,2)),"",ROUND(ROUND(F97,2)*I97,2)) -> 276.69 | K97: 89987 | L97: SINAPI-C
C98: 11.2 | D98: PVC Rígido Soldável
C99: 11.2.1 | D99: Joelho 90° soldável | redução 50mm - 25 mm | E99: UN | F99: 3 | G99: 10.8 | H99: =[1]BDI!$C$31 -> 0.2034 | I99: =ROUND(((G99*H99)+G99),2) -> 13 | J99: =IF(ISERR(ROUND(ROUND(F99,2)*I99,2)),"",ROUND(ROUND(F99,2)*I99,2)) -> 39 | K99: MED204 | L99: MERCADO
C100: 11.2.2 | D100: Curva 45º soldável | 50 mm | E100: UN | F100: 1 | G100: 25.29 | H100: =[1]BDI!$C$31 -> 0.2034 | I100: 30.43 | J100: 30.43 | K100: CHD011 | L100: COMPOSIÇÃO
C101: 11.2.3 | D101: Tê soldável | 50 mm | E101: UN | F101: 3 | G101: 22.59 | H101: =[1]BDI!$C$31 -> 0.2034 | I101: 27.18 | J101: 81.54 | K101: 89362 | L101: SINAPI-C
C102: 11.2.4 | D102: Tubos | 25 mm | E102: M | F102: 7.88 | G102: 20.9 | H102: =[1]BDI!$C$31 -> 0.2034 | I102: 25.15 | J102: 198.18 | K102: 89356 | L102: SINAPI-C
C103: 11.2.5 | D103: Tubos | 50 mm | E103: M | F103: 18.9 | G103: 18.28 | H103: =[1]BDI!$C$31 -> 0.2034 | I103: =ROUND(((G103*H103)+G103),2) -> 22 | J103: =IF(ISERR(ROUND(ROUND(F103,2)*I103,2)),"",ROUND(ROUND(F103,2)*I103,2)) -> 415.8 | K103: 89449 | L103: SINAPI-C
C104: 11.3 | D104: PVC Soldável Azul c/ Bucha de Latão
C105: 11.3.1 | D105: Joelho de redução 90º soldável com bucha de latão | 25 mm- 1/2" | E105: UN | F105: 3 | G105: 21.29 | H105: =[1]BDI!$C$31 -> 0.2034 | I105: 25.62 | J105: 76.86 | K105: 89625 | L105: SINAPI-C
C106: 12 | D106: =[1]QUANT!C253 -> REDE SANITÁRIA | I106: ∑ | J106: =SUM(J107:J115) -> 2734.67
C107: 12.1 | D107: Caixas de Passagem
C108: 12.1.1 | D108: Caixa de Inspeção, 60x60cm, em Alvenaria | E108: UN | F108: 1 | G108: 921.54 | H108: =[1]BDI!$C$31 -> 0.2034 | I108: =ROUND(((G108*H108)+G108),2) -> 1108.98 | J108: =IF(ISERR(ROUND(ROUND(F108,2)*I108,2)),"",ROUND(ROUND(F108,2)*I108,2)) -> 1108.98 | K108: 97906 | L108: SINAPI-C
C109: 12.2 | D109: Caixas Sifonadas
C110: 12.2.1 | D110: Caixa sifonada | 150x150x50 | E110: UN | F110: 1 | G110: 70.81 | H110: =[1]BDI!$C$31 -> 0.2034 | I110: =ROUND(((G110*H110)+G110),2) -> 85.21 | J110: =IF(ISERR(ROUND(ROUND(F110,2)*I110,2)),"",ROUND(ROUND(F110,2)*I110,2)) -> 85.21 | K110: CHD031 | L110: COMPOSIÇÃO
C111: 12.3 | D111: PVC Esgoto
C112: 12.3.1 | D112: Joelho 90 | 50 mm | E112: UN | F112: 4 | G112: 10.8 | H112: =[1]BDI!$C$31 -> 0.2034 | I112: =ROUND(((G112*H112)+G112),2) -> 13 | J112: =IF(ISERR(ROUND(ROUND(F112,2)*I112,2)),"",ROUND(ROUND(F112,2)*I112,2)) -> 52 | K112: 89731 | L112: SINAPI-C
C113: 12.3.2 | D113: Joelho 45 | 50 mm | E113: UN | F113: 1 | G113: 14.33 | H113: =[1]BDI!$C$31 -> 0.2034 | I113: 17.24 | J113: 17.24 | K113: 89724 | L113: SINAPI-C
C114: 12.3.3 | D114: Tubo rígido c/ ponta lisa | 100 mm - 4" | E114: M | F114: 18.9 | G114: 56.64 | H114: =[1]BDI!$C$31 -> 0.2034 | I114: 68.16 | J114: 1288.22 | K114: 89714 | L114: SINAPI-C
C115: 12.3.4 | D115: Tubo rígido c/ ponta lisa | 50 mm - 2" | E115: M | F115: 5.25 | G115: 28.97 | H115: =[1]BDI!$C$31 -> 0.2034 | I115: 34.86 | J115: 183.02 | K115: 89712 | L115: SINAPI-C
C116: 13 | D116: =[1]QUANT!C257 -> REDE PLUVIAL | I116: ∑ | J116: =SUM(J117:J125) -> 4376.61
C117: 13.1 | D117: PVC Esgoto
C118: 13.1.1 | D118: Curva 90 curta | 100 mm | E118: UN | F118: 9 | G118: 70 | H118: =[1]BDI!$C$31 -> 0.2034 | I118: =ROUND(((G118*H118)+G118),2) -> 84.24 | J118: =IF(ISERR(ROUND(ROUND(F118,2)*I118,2)),"",ROUND(ROUND(F118,2)*I118,2)) -> 758.16 | K118: 89748 | L118: SINAPI-C
C119: 13.1.2 | D119: Joelho 45 | 100 mm | E119: UN | F119: 4 | G119: 35.29 | H119: =[1]BDI!$C$31 -> 0.2034 | I119: 42.47 | J119: 169.88 | K119: 89746 | L119: SINAPI-C
C120: 13.1.3 | D120: Tê | 100 mm | E120: UN | F120: 1 | G120: 64.72 | H120: =[1]BDI!$C$31 -> 0.2034 | I120: 77.88 | J120: 77.88 | K120: INHI180 | L120: COMPOSIÇÃO
C121: 13.1.4 | D121: Tê redução 100 mm - 50 mm | E121: UN | F121: 2 | G121: 63.63 | H121: =[1]BDI!$C$31 -> 0.2034 | I121: 76.57 | J121: 153.14 | K121: INHI180 | L121: COMPOSIÇÃO
C122: 13.2 | D122: Tubo Rígido com Ponta Lisa, Condutores Horizontais, Com Escavação
C123: 13.2.1 | D123: 100mm - 4" | E123: M | F123: 29.93 | G123: 68.48 | H123: =[1]BDI!$C$31 -> 0.2034 | I123: =ROUND(((G123*H123)+G123),2) -> 82.41 | J123: =IF(ISERR(ROUND(ROUND(F123,2)*I123,2)),"",ROUND(ROUND(F123,2)*I123,2)) -> 2466.53 | K123: 89512 | L123: SINAPI-C
C124: 13.3 | D124: Tubo Rígido com Ponta Lisa, Condutores Verticais
C125: 13.3.1 | D125: 100mm - 4" | E125: M | F125: 13.65 | G125: 45.72 | H125: =[1]BDI!$C$31 -> 0.2034 | I125: =ROUND(((G125*H125)+G125),2) -> 55.02 | J125: =IF(ISERR(ROUND(ROUND(F125,2)*I125,2)),"",ROUND(ROUND(F125,2)*I125,2)) -> 751.02 | K125: 89578 | L125: SINAPI-C
C126: 14 | D126: =[1]QUANT!C269 -> INSTALAÇÕES DE AR CONDICIONADO | I126: ∑ | J126: =SUM(J127:J132) -> 274.64
C127: 14.1 | D127: Caixas de Passagem
C128: 14.1.1 | D128: Caixa de Passagem para Evaporadora/Condensadora | E128: UN | F128: 2 | G128: 39.29 | H128: =[1]BDI!$C$31 -> 0.2034 | I128: =ROUND(((G128*H128)+G128),2) -> 47.28 | J128: =IF(ISERR(ROUND(ROUND(F128,2)*I128,2)),"",ROUND(ROUND(F128,2)*I128,2)) -> 94.56 | K128: 91942 | L128: SINAPI-C
C129: 14.2 | D129: PVC Rígido Soldável
C130: 14.2.1 | D130: Joelho 45 soldável | 50 mm | E130: UN | F130: 2 | G130: 6.85 | H130: =[1]BDI!$C$31 -> 0.2034 | I130: =ROUND(((G130*H130)+G130),2) -> 8.24 | J130: =IF(ISERR(ROUND(ROUND(F130,2)*I130,2)),"",ROUND(ROUND(F130,2)*I130,2)) -> 16.48 | K130: 89409 | L130: SINAPI-C
C131: 14.2.2 | D131: Joelho 90° soldável | 50 mm | E131: UN | F131: 2 | G131: 5.97 | H131: =[1]BDI!$C$31 -> 0.2034 | I131: 7.18 | J131: 14.36 | K131: 89408 | L131: SINAPI-C
C132: 14.2.3 | D132: Tubos | 50 mm | E132: UN | F132: 13 | G132: 9.54 | H132: =[1]BDI!$C$31 -> 0.2034 | I132: =ROUND(((G132*H132)+G132),2) -> 11.48 | J132: =IF(ISERR(ROUND(ROUND(F132,2)*I132,2)),"",ROUND(ROUND(F132,2)*I132,2)) -> 149.24 | K132: 89402 | L132: SINAPI-C
C133: 15 | D133: =[1]QUANT!C277 -> REVESTIMENTO ARGAMASSADO | I133: ∑ | J133: =SUM(J134:J141) -> 11085.93
C134: 15.1 | D134: =[1]QUANT!C285 -> Chapisco
C135: 15.1.1 | D135: =[1]QUANT!C286 -> Chapisco Interno, aplicado com Colher de Pedreiro, Argamassa Traço 1:3 | E135: M2 | F135: 48.12 | G135: 8.3 | H135: =[1]BDI!$C$31 -> 0.2034 | I135: =ROUND(((G135*H135)+G135),2) -> 9.99 | J135: =IF(ISERR(ROUND(ROUND(F135,2)*I135,2)),"",ROUND(ROUND(F135,2)*I135,2)) -> 480.72 | K135: 87905 | L135: SINAPI-C
C136: 15.1.2 | D136: =[1]QUANT!C316 -> Chapisco Externo, aplicado com Colher de Pedreiro, Argamassa Traço 1:3 | E136: M2 | F136: 59.92 | G136: 8.3 | H136: =[1]BDI!$C$31 -> 0.2034 | I136: 9.99 | J136: 598.6 | K136: 87905 | L136: SINAPI-C
C137: 15.2 | D137: =[1]QUANT!C359 -> Massa Única (Reboco/Emboço)
C138: 15.2.1 | D138: =[1]QUANT!C360 -> Massa Única Interna, para Pintura, Argamassa Traço 1:2:8 | E138: M2 | F138: 48.12 | G138: 31.48 | H138: =[1]BDI!$C$31 -> 0.2034 | I138: 37.88 | J138: 1822.79 | K138: 87529 | L138: SINAPI-C
C139: 15.2.2 | D139: =[1]QUANT!C367 -> Massa Única Externa, Argamassa Traço 1:2:8 | E139: M2 | F139: 59.92 | G139: 52.48 | H139: =[1]BDI!$C$31 -> 0.2034 | I139: 63.15 | J139: 3783.95 | K139: 87775 | L139: SINAPI-C
C140: 15.3 | D140: =[1]QUANT!C370 -> Contrapiso/Regularização
C141: 15.3.1 | D141: =[1]QUANT!C371 -> Contrapiso/Regularização, e=3cm, Argamassa Traço 1:4 | E141: M2 | F141: 97.45 | G141: 37.52 | H141: =[1]BDI!$C$31 -> 0.2034 | I141: =ROUND(((G141*H141)+G141),2) -> 45.15 | J141: =IF(ISERR(ROUND(ROUND(F141,2)*I141,2)),"",ROUND(ROUND(F141,2)*I141,2)) -> 4399.87 | K141: 94438 | L141: SINAPI-C
C142: 16 | D142: =[1]QUANT!C377 -> REVESTIMENTO DE ACABAMENTO | I142: ∑ | J142: =SUM(J143:J148) -> 9842.86
C143: 16.1 | D143: =[1]QUANT!C378 -> Granito
C144: 16.1.1 | D144: =[1]QUANT!C379 -> Soleira de Granito Jateada, e=2cm, para Portas (fornecimento e assentamento) | E144: M2 | F144: 0.42 | G144: 540.31 | H144: =[1]BDI!$C$31 -> 0.2034 | I144: =ROUND(((G144*H144)+G144),2) -> 650.21 | J144: =IF(ISERR(ROUND(ROUND(F144,2)*I144,2)),"",ROUND(ROUND(F144,2)*I144,2)) -> 273.09 | K144: CED200 | L144: COMPOSIÇÃO
C145: 16.1.2 | D145: =[1]QUANT!C391 -> Soleira de Granito Polido, e=2cm, para Janelas (fornecimento e assentamento) | E145: M2 | F145: 2.59 | G145: 540.31 | H145: =[1]BDI!$C$31 -> 0.2034 | I145: =ROUND(((G145*H145)+G145),2) -> 650.21 | J145: =IF(ISERR(ROUND(ROUND(F145,2)*I145,2)),"",ROUND(ROUND(F145,2)*I145,2)) -> 1684.04 | K145: CED200 | L145: COMPOSIÇÃO
C146: 16.2 | D146: =[1]QUANT!C397 -> Cerâmico
C147: 16.2.1 | D147: Piso Cerâmico ANTIDERRAPANTE, 60x60cm (ou medida aproximada, Cor igual existente) , PEI 5, assentado com Argamassa | E147: M2 | F147: 97.45 | G147: 62.53 | H147: =[1]BDI!$C$31 -> 0.2034 | I147: =ROUND(((G147*H147)+G147),2) -> 75.25 | J147: =IF(ISERR(ROUND(ROUND(F147,2)*I147,2)),"",ROUND(ROUND(F147,2)*I147,2)) -> 7333.11 | K147: 87257 | L147: SINAPI-C
C148: 16.2.2 | D148: =[1]QUANT!C410 -> Rodapé Cerâmico de 7cm, assentado com Argamassa | E148: M | F148: 39.9 | G148: 11.51 | H148: =[1]BDI!$C$31 -> 0.2034 | I148: =ROUND(((G148*H148)+G148),2) -> 13.85 | J148: 552.62 | K148: 88650 | L148: SINAPI-C
C149: 17 | D149: =[1]QUANT!C514 -> PINTURA | I149: ∑ | J149: =SUM(J150:J152) -> 3411.91
C150: 17.1 | D150: =[1]QUANT!C543 -> Fundo Preparador para Pintura Acrílica, 01 demão | E150: M2 | F150: 146.82 | G150: 2.18 | H150: =[1]BDI!$C$31 -> 0.2034 | I150: =ROUND(((G150*H150)+G150),2) -> 2.62 | J150: =IF(ISERR(ROUND(ROUND(F150,2)*I150,2)),"",ROUND(ROUND(F150,2)*I150,2)) -> 384.67 | K150: 88485 | L150: SINAPI-C
C151: 17.2 | D151: =[1]QUANT!C547 -> Pintura Acrílica, 02 demãos | E151: M2 | F151: 146.82 | G151: 14.36 | H151: =[1]BDI!$C$31 -> 0.2034 | I151: =ROUND(((G151*H151)+G151),2) -> 17.28 | J151: 2537.05 | K151: 88489 | L151: SINAPI-C
C152: 17.3 | D152: Pintura tinta de acabamento pigmentada a óleo em madeira 3 de mão (beiral) | E152: M2 | F152: 17.89 | G152: 22.77 | H152: =[1]BDI!$C$31 -> 0.2034 | I152: =ROUND(((G152*H152)+G152),2) -> 27.4 | J152: 490.19 | K152: 102227 | L152: SINAPI-C
C153: 18 | D153: FORRO | I153: ∑ | J153: =SUM(J154:J156) -> 14527.26
C154: 18.1 | D154: Forro de PVC, Branco com Friso macho/fêmea (inclusive estrutura de fixação) | E154: M2 | F154: 97.45 | G154: 85.99 | H154: 0.2034 | I154: 161.7 | J154: 7915.22 | K154: 96486 | L154: SINAPI-C
C155: 18.2 | D155: Rodaforro de PVC (fornecimento e instalação) | E155: M | F155: 43.63 | G155: 76.29 | H155: 0.2034 | I155: 51.76 | J155: 2630.44 | K155: 96116 | L155: SINAPI-C
C156: 18.3 | D156: Fechamento beiral do telhado (80cm) | E156: M2 | F156: 17.89 | G156: 184.94 | H156: =[1]BDI!$C$31 -> 0.2034 | I156: =ROUND(((G156*H156)+G156),2) -> 222.56 | J156: =IF(ISERR(ROUND(ROUND(F156,2)*I156,2)),"",ROUND(ROUND(F156,2)*I156,2)) -> 3981.6 | K156: 96117 | L156: SINAPI-C
C157: 19 | D157: =[1]QUANT!C634 -> ESQUADRIAS DE ALUMÍNIO | I157: ∑ | J157: =SUM(J158:J160) -> 3037.37
C158: 19.1 | D158: Janela de Correr, 7 Folhas de Correr, 5,86x1,10m (instalação) | E158: UN | F158: 1 | G158: 550 | H158: =[1]BDI!$C$31 -> 0.2034 | I158: =ROUND(((G158*H158)+G158),2) -> 661.87 | J158: =IF(ISERR(ROUND(ROUND(F158,2)*I158,2)),"",ROUND(ROUND(F158,2)*I158,2)) -> 661.87 | K158: MED205 | L158: MERCADO
C159: 19.2 | D159: Janela de Correr, 2 Folha Fixa, 2 Folhas de Correr, com - 2,00x1,10m (fornecimento e instalação) | E159: UN | F159: 1 | G159: 871.2 | H159: =[1]BDI!$C$31 -> 0.2034 | I159: =ROUND(((G159*H159)+G159),2) -> 1048.4 | J159: =IF(ISERR(ROUND(ROUND(F159,2)*I159,2)),"",ROUND(ROUND(F159,2)*I159,2)) -> 1048.4 | K159: MED206 | L159: MERCADO
C160: 19.3 | D160: Porta Janela de Abrir, 2 Folha Abrir, com - 2,00x2,10m (fornecimento e instalação) | E160: UN | F160: 1 | G160: 1102.79 | H160: =[1]BDI!$C$31 -> 0.2034 | I160: =ROUND(((G160*H160)+G160),2) -> 1327.1 | J160: =IF(ISERR(ROUND(ROUND(F160,2)*I160,2)),"",ROUND(ROUND(F160,2)*I160,2)) -> 1327.1 | K160: MED207 | L160: MERCADO
C161: 20 | D161: =[1]QUANT!C880 -> ACESSÓRIOS DO PREVENTIVO CONTRA INCÊNDIO | I161: ∑ | J161: =SUM(J163:J166) -> 314.58
C162: 20.1 | D162: Iluminação e Sinalização de Emergência
C163: 20.1.1 | D163: Bloco Autônomo com Indicação de Saída | E163: UN | F163: 1 | G163: 47.81 | H163: 0.2034 | I163: 57.53 | J163: 57.53 | K163: CPR001 | L163: COMPOSIÇÃO
C164: 20.1.2 | D164: Bloco Autônomo de Iluminação de Emergência 30 LED's | E164: UN | F164: 4 | G164: 29.58 | H164: 0.2034 | I164: 35.9 | J164: 107.7 | K164: 97599 | L164: SINAPI-C
C165: 20.2 | D165: Extintores
C166: 20.2.1 | D166: Extintor de Incêndio Portátil PQS 4kg | E166: UN | F166: 1 | G166: 160.74 | H166: 0.2034 | I166: 149.35 | J166: 149.35 | K166: 101908 | L166: SINAPI-C
I168: TOTAL: | J168: =SUM(J161,J157,J153,J149,J142,J133,J126,J116,J106,J95,J77,J70,J67,J64,J61,J56,J43,J25,J17,J15) -> 119858.94
C171: 1. | D171: Declaro que os encargos sociais e complementares para mão de obra, horista e mensalista, sem desoneração, atendem ao estabelecido no SINAPI para SC.
C173: 2. | D173: Declaro que para esta planilha, foi verificado que a alternativa mais adequada para a Administração Pública, é a utilização da planilha SEM DESONERAÇÃO.
C175: Rio do Sul, | D175: =TODAY() -> 2021-11-19
C177: 3. | D177: INCLUSO EM TODO ORÇAMENTO Todo material, mão-de-obra e equipamentos necessários para fabricação, montagem içamento, elementos de fixação e vedação, ferragens, parafusos porcas e arruelas, chaparias, Projeto, Fabricação, Transporte, Montagem e ART de Fabricação e Montagem.
C179: 4. | D179: Para o item X.X, considerou um valor obtido através de cotação de mercado. Esta cotação de mercado considera um mínimo de 3 fontes de pesquisa, onde são incorporados nos valores todos os custos, sendo diretos e indiretos. Ou seja, inclui-se fornecimento de material e mão-de-obra necessários, fabricação e montagem das peças, além de impostos, lucro, entre outros. Ressalta-se que este município zela pelo princípio da economicidade, onde a indicação de BDI igual a 0 (zero) está justificado para que não haja a duplicidade da consideração das despesas indireta.

Sheet FISICO
A13: TODOS OS VALORES ESTÃO NA UNIDADE MONETÁRIA REAL
A14: ITEM | B14: DESCRIÇÃO | C14: TOTAL | D14: % | E14: 1 | F14: % | G14: 2 | H14: % | I14: 3 | J14: % | K14: 4 | L14: %
E15: =E14*30 -> 30 | G15: =G14*30 -> 60 | I15: =I14*30 -> 90 | K15: =K14*30 -> 120
A17: 1 | B17: CANTEIRO DE OBRAS | C17: =CRONOGRAMA!J15 -> 450 | D17: =C17/$C$38 -> 0.003754413313 | E17: =C17*F17 -> 450 | F17: 1 | G17: =C17*H17 -> 0 | H17: 0 | I17: =C17*J17 -> 0 | J17: 0 | K17: =C17*L17 -> 0 | L17: 0
A18: 2 | B18: DEMOLIÇÃO | C18: =CRONOGRAMA!J17 -> 5525.09 | D18: 0.04609660322 | E18: =C18*F18 -> 5525.09 | F18: 1 | G18: =C18*H18 -> 0 | H18: 0 | I18: =C18*J18 -> 0 | J18: 0 | K18: =C18*L18 -> 0 | L18: 0
A19: 3 | B19: INFRAESTRUTURA | C19: =CRONOGRAMA!J25 -> 13704.1 | D19: 0.1143352344 | E19: 13704.1 | F19: 1 | G19: 0 | H19: =1-F19 -> 0 | I19: 0 | J19: 0 | K19: 0 | L19: 0
A20: 4 | B20: SUPRAESTRUTURA | C20: =CRONOGRAMA!J43 -> 10098.84 | D20: 0.08425604298 | E20: 0 | F20: 0 | G20: 10098.84 | H20: 1 | I20: 0 | J20: 0 | K20: 0 | L20: 0
A21: 5 | B21: FECHAMENTOS | C21: =CRONOGRAMA!J56 -> 4763.8 | D21: 0.03974505364 | E21: 0 | F21: 0 | G21: 4763.8 | H21: 1 | I21: 0 | J21: 0 | K21: 0 | L21: 0
A22: 6 | B22: ESTRUTURA COBERTURA | C22: =CRONOGRAMA!J61 -> 9889 | D22: 0.08250531834 | E22: 0 | F22: 0 | G22: 0 | H22: 0 | I22: 9889 | J22: 1 | K22: 0 | L22: 0
A23: 7 | B23: TELHAMENTO | C23: =CRONOGRAMA!J64 -> 5212.22 | D23: 0.04348628479 | E23: 0 | F23: 0 | G23: 0 | H23: 0 | I23: 5212.22 | J23: 1 | K23: 0 | L23: 0
A24: 8 | B24: CALHAS E RUFOS | C24: =CRONOGRAMA!J67 -> 3831.56 | D24: 0.03196724416 | E24: 0 | F24: 0 | G24: 0 | I24: 0 | J24: 0 | K24: 3831.56 | L24: 1
A25: 9 | B25: PISO CONVENCIONAL | C25: =CRONOGRAMA!J70 -> 9847.75 | D25: 0.08216116378 | E25: 0 | F25: 0 | G25: 4923.875 | H25: 0.5 | I25: 4923.875 | J25: 0.5 | K25: 0 | L25: 0
A26: 10 | B26: INSTALAÇÕES ELÉTRICAS | C26: =CRONOGRAMA!J77 -> 5812.25 | D26: 0.04849241951 | E26: 0 | F26: 0 | G26: 0 | H26: 0 | I26: 2906.125 | J26: 0.5 | K26: 2906.125 | L26: 0.5
A27: 11 | B27: REDE HIDRÁULICA | C27: =CRONOGRAMA!J95 -> 1118.5 | D27: 0.009331802868 | E27: 0 | F27: 0 | G27: 559.25 | H27: 0.5 | I27: 559.25 | J27: 0.5 | K27: 0 | L27: 0
A28: 12 | B28: REDE SANITÁRIA | C28: =CRONOGRAMA!J106 -> 2734.67 | D28: 0.02281573656 | E28: 2734.67 | F28: 1 | G28: 0 | H28: 0 | I28: 0 | J28: 0 | K28: 0 | L28: 0
A29: 13 | B29: REDE PLUVIAL | C29: =CRONOGRAMA!J116 -> 4376.61 | D29: 0.036514673 | E29: 4376.61 | F29: 1 | G29: 0 | H29: 0 | I29: 0 | J29: 0 | K29: 0 | L29: 0
A30: 14 | B30: INSTALAÇÕES DE AR-CONDICIONADO | C30: =CRONOGRAMA!J126 -> 274.64 | D30: 0.002291360161 | E30: 0 | G30: 0 | H30: 0 | I30: 274.64 | J30: 1 | K30: 0 | L30: 0
A31: 15 | B31: REVESTIMENTO ARGAMASSADO | C31: =CRONOGRAMA!J133 -> 11085.93 | D31: 0.09249147373 | E31: 0 | F31: 0 | G31: 0 | H31: 0 | I31: 11085.93 | J31: 1 | K31: 0 | L31: 0
A32: 16 | B32: REVESTIMENTO DE ACABAMENTO | C32: =CRONOGRAMA!J142 -> 9842.86 | D32: 0.08212036582 | E32: 0 | F32: 0 | G32: 0 | H32: 0 | I32: 1968.572 | J32: 0.2 | K32: =C32*L32 -> 7874.288 | L32: 0.8
A33: 17 | B33: PINTURA | C33: =CRONOGRAMA!J149 -> 3411.91 | D33: 0.02846604517 | E33: 0 | F33: 0 | G33: 0 | H33: 0 | I33: 0 | J33: 0 | K33: 3411.91 | L33: 1
A34: 18 | B34: FORRO | C34: =CRONOGRAMA!J153 -> 14527.26 | D34: 0.1212029741 | E34: 0 | F34: 0 | G34: 0 | H34: 0 | I34: 0 | J34: 0 | K34: 14527.26 | L34: 1
A35: 19 | B35: ESQUADRIAS DE ALUMÍNIO | C35: =CRONOGRAMA!J157 -> 3037.37 | D35: 0.02534120525 | E35: 0 | F35: 0 | G35: 0 | H35: 0 | I35: 0 | J35: 0 | K35: 3037.37 | L35: 1
A36: 20 | B36: ACESSÓRIOS DO PREVENTIVO CONTRA INCÊNDIO | C36: =CRONOGRAMA!J161 -> 314.58 | D36: 0.0026245852 | E36: 0 | F36: 0 | G36: 0 | H36: 0 | I36: 0 | J36: 0 | K36: 314.58 | L36: 1
B38: SUBTOTAL | C38: =SUM(C16:C37) -> 119858.94 | D38: =SUM(D17:D37) -> 1 | E38: =SUM(E17:E37) -> 26790.47 | F38: =E38/C38 -> 0.2235166605 | G38: =SUM(G17:G37) -> 20345.765 | H38: =G38/C38 -> 0.1697475799 | I38: =SUM(I17:I37) -> 36819.612 | J38: =I38/C38 -> 0.3071912033 | K38: =SUM(K17:K37) -> 35903.093 | L38: =K38/C38 -> 0.2995445563
B39: TOTAL ACUMULADO | E39: =C39+E38 -> 26790.47 | F39: 0.2235166605 | G39: 47136.235 | H39: 0.3932642404 | I39: 83955.847 | J39: 0.7004554437 | K39: 119858.94 | L39: 1

Sheet BDI
B3: O valor do BDI é obtido pela fórmula e taxas abaixo: | H3: ADMINISTRAÇÃO LOCAL
H4: 1 Quartil
B5: FÓRMULA BDI
B8: BDI = | C8: (1+AC+S+R+G) (1+DF) (1+L) | D8: -1
C9: _______________________________________
C10: (1-I)
B13: Tipo de Obra:
B14: =H14 -> CONSTRUÇÃO DE EDIFÍCIOS | H14: CONSTRUÇÃO DE EDIFÍCIOS | L14: CONSTRUÇÃO DE RODOVIAS E FERROVIAS (PRAÇAS)
B17: ONDE (Conforme Acórdão do TCU N°2622/2013): | H17: 1 Quartil | I17: Médio | J17: 3 Quartil | L17: 1 Quartil | M17: Médio | N17: 3 Quartil
B18: AC = Taxa de Administração Central | E18: =H18 -> 0.03 | H18: ='[1]FONTE BDI'!C16 -> 0.03 | I18: ='[1]FONTE BDI'!D16 -> 0.04 | J18: ='[1]FONTE BDI'!E16 -> 0.055 | L18: ='[1]FONTE BDI'!C25 -> 0.038 | M18: ='[1]FONTE BDI'!D25 -> 0.0401 | N18: ='[1]FONTE BDI'!E25 -> 0.0467
B19: S = Taxa de Seguros | E19: =H19 -> 0.004 | H19: ='[1]FONTE BDI'!C17/2 -> 0.004 | I19: ='[1]FONTE BDI'!D17/2 -> 0.004 | J19: ='[1]FONTE BDI'!E17/2 -> 0.005 | L19: ='[1]FONTE BDI'!C26/2 -> 0.0016 | M19: ='[1]FONTE BDI'!D26/2 -> 0.002 | N19: ='[1]FONTE BDI'!E26/2 -> 0.0037
B20: G = Taxa de Garantias | E20: =H20 -> 0.004 | H20: ='[1]FONTE BDI'!C17/2 -> 0.004 | I20: ='[1]FONTE BDI'!D17/2 -> 0.004 | J20: ='[1]FONTE BDI'!E17/2 -> 0.005 | L20: ='[1]FONTE BDI'!C26/2 -> 0.0016 | M20: ='[1]FONTE BDI'!D26/2 -> 0.002 | N20: ='[1]FONTE BDI'!E26/2 -> 0.0037
B21: R = Taxa de Riscos | E21: =H21 -> 0.0097 | H21: ='[1]FONTE BDI'!C18 -> 0.0097 | I21: ='[1]FONTE BDI'!D18 -> 0.0127 | J21: ='[1]FONTE BDI'!E18 -> 0.0127 | L21: ='[1]FONTE BDI'!C27 -> 0.005 | M21: ='[1]FONTE BDI'!D27 -> 0.0056 | N21: ='[1]FONTE BDI'!E27 -> 0.0097
B22: DF = Taxa de Despesas Financeiras | E22: =H22 -> 0.0059 | H22: ='[1]FONTE BDI'!C19 -> 0.0059 | I22: ='[1]FONTE BDI'!D19 -> 0.0123 | J22: ='[1]FONTE BDI'!E19 -> 0.0139 | L22: ='[1]FONTE BDI'!C28 -> 0.0102 | M22: ='[1]FONTE BDI'!D28 -> 0.0111 | N22: ='[1]FONTE BDI'!E28 -> 0.0121
B23: L = Taxa de Lucro / Remuneração | E23: =IF(ROUNDUP((((1+H31)*(1-E24))/((1+E18+E19+E20+E21)*(1+E22))-1),4)<H23,H23,ROUNDUP((((1+H31)*(1-E24))/((1+E18+E19+E20+E21)*(1+E22))-1),4)) -> 0.066 | H23: ='[1]FONTE BDI'!C20 -> 0.0616 | I23: ='[1]FONTE BDI'!D20 -> 0.074 | J23: ='[1]FONTE BDI'!E20 -> 0.0896 | L23: ='[1]FONTE BDI'!C29 -> 0.0664 | M23: ='[1]FONTE BDI'!D29 -> 0.073 | N23: ='[1]FONTE BDI'!E29 -> 0.0869
B24: I = Taxa de Incidência de Impostos | E24: =D27 -> 0.0665 | H24: Conforme legislação específica | L24: Conforme legislação específica
C25: I1: PIS e COFINS | D25: 0.0365 | H25: ='[1]DADOS GERAIS'!$B$3 -> Prefeitura Municipal de Vitor Meireles | L25: ='[1]DADOS GERAIS'!$B$3 -> Prefeitura Municipal de Vitor Meireles
C26: I2: ISSQN (conforme legislação municipal) | D26: =VLOOKUP(H25,'[1]FONTE BDI'!G14:H41,2,FALSE) -> 0.03
C27: ∑ | D27: =SUM(D25:D26) -> 0.0665
B29: Logo, obtem-se com os dados na fórmula o seguinte resultado:
H30: 1 Quartil | I30: Médio | J30: 3 Quartil | L30: 1 Quartil | M30: Médio | N30: 3 Quartil
C31: =TRUNC(((((1+E18+E19+E20+E21)*(1+E22)*(1+E23))/(1-E24))-1),4) -> 0.2034 | H31: ='[1]FONTE BDI'!C5 -> 0.2034 | I31: ='[1]FONTE BDI'!D5 -> 0.2212 | J31: ='[1]FONTE BDI'!E5 -> 0.25 | L31: ='[1]FONTE BDI'!C6 -> 0.196 | M31: ='[1]FONTE BDI'!D6 -> 0.2097 | N31: ='[1]FONTE BDI'!E6 -> 0.2423
H33: =IF(COUNTIF([1]ORÇAMENTO!O:O,C63)<>0,"Utilizado","") -> 
B35: O valor do BDI é obtido pela fórmula e taxas abaixo:
B37: FÓRMULA BDI
B40: BDI = | C40: (1+AC+S+R+G) (1+DF) (1+L) | D40: -1
C41: _______________________________________
C42: (1-I)
B45: Tipo de Obra:
H46: FORNECIMENTO DE MATERIAIS E EQUIPAMENTOS
B47: FORNECIMENTO DE MATERIAIS E EQUIPAMENTOS
B49: ONDE (Conforme Acórdão do TCU N°2622/2013): | H49: 1 Quartil | I49: Médio | J49: 3 Quartil
B50: AC = Taxa de Administração Central | E50: =H50 -> 0.015 | H50: ='[1]FONTE BDI'!C61 -> 0.015 | I50: ='[1]FONTE BDI'!D61 -> 0.0345 | J50: ='[1]FONTE BDI'!E61 -> 0.0449
B51: S = Taxa de Seguros | E51: 0.0015 | H51: ='[1]FONTE BDI'!C62/2 -> 0.0015 | I51: ='[1]FONTE BDI'!D62/2 -> 0.0024 | J51: ='[1]FONTE BDI'!E62/2 -> 0.0041
B52: G = Taxa de Garantias | E52: 0.0015 | H52: ='[1]FONTE BDI'!C62/2 -> 0.0015 | I52: ='[1]FONTE BDI'!D62/2 -> 0.0024 | J52: ='[1]FONTE BDI'!E62/2 -> 0.0041
B53: R = Taxa de Riscos | E53: 0.0056 | H53: ='[1]FONTE BDI'!C63 -> 0.0056 | I53: ='[1]FONTE BDI'!D63 -> 0.0085 | J53: ='[1]FONTE BDI'!E63 -> 0.0089
B54: DF = Taxa de Despesas Financeiras | E54: 0.0085 | H54: ='[1]FONTE BDI'!C64 -> 0.0085 | I54: ='[1]FONTE BDI'!D64 -> 0.0085 | J54: ='[1]FONTE BDI'!E64 -> 0.0111
B55: L = Taxa de Lucro / Remuneração | E55: 0.035 | H55: ='[1]FONTE BDI'!C65 -> 0.035 | I55: ='[1]FONTE BDI'!D65 -> 0.0511 | J55: ='[1]FONTE BDI'!E65 -> 0.0622
B56: I = Taxa de Incidência de Impostos | E56: =D59 -> 0.0665 | H56: Conforme legislação específica
C57: I1: PIS e COFINS | D57: 0.0365 | H57: ='[1]DADOS GERAIS'!$B$3 -> Prefeitura Municipal de Vitor Meireles
C58: I2: ISSQN (conforme legislação municipal) | D58: =VLOOKUP(H57,'[1]FONTE BDI'!G14:H41,2,FALSE) -> 0.03
C59: ∑ | D59: =SUM(D57:D58) -> 0.0665
B61: Logo, obtem-se com os dados na fórmula o seguinte resultado:
H62: 1 Quartil | I62: Médio | J62: 3 Quartil
C63: =TRUNC(((((1+E50+E51+E52+E53)*(1+E54)*(1+E55))/(1-E56))-1),4) -> 0.1445 | H63: ='[1]FONTE BDI'!C10 -> 0.111 | I63: ='[1]FONTE BDI'!D10 -> 0.1402 | J63: ='[1]FONTE BDI'!E10 -> 0.168
